[Event "44th Chess Olympiad Women 2022"]
[Site "Chennai"]
[Date "2022.07.30"]
[Round "2.19"]
[White "Lahav, Michal"]
[Black "Rovira Contreras, Tairu Manuela"]
[Result "1-0"]
[ECO "C69"]
[WhiteElo "2191"]
[BlackElo "2036"]
[Annotator "TA"]
[PlyCount "77"]
[EventDate "2022.07.29"]
[EventType "team-tourn"]
[EventCountry "IND"]
[SourceTitle "playchess.com"]
[Source "ChessBase"]
[SourceQuality "1"]
[WhiteTeam "Israel"]
[BlackTeam "Venezuela"]
[WhiteTeamCountry "ISR"]
[BlackTeamCountry "VEN"]
[TimeControl "40/5400+30:1800+30"]

{[%evp 15,77,-24,12,-61,-56,-64,-61,-68,-60,-64,-64,-86,-70,-73,-32,-32,-29,-28,-35,-57,-47,-46,-16,-46,-31,-28,-27,-35,-30,-53,0,0,0,0,0,0,0,0,0,-1,0,0,16,16,16,27,288,283,278,301,285,161,161,157,159,151,357,341,481,467,701,685,652,646]} 1. e4 {[%emt 0:00:03]} e5 {[%emt 0:00:29]} 2. Nf3 {[%emt 0:00:04]} Nc6 {[%emt 0:00:05]} 3. Bb5 {[%emt 0:00:15]} a6 {[%emt 0:00:12]} 4. Bxc6 {[%emt 0:00:08]} dxc6 {[%emt 0:00:12]} 5. O-O {[%emt 0:00:11]} f6 {[%emt 0:03:20]} 6. d4 {[%emt 0:00:33]} exd4 {[%emt 0:05:19]} 7. Qxd4 {[%emt 0:00:26]} Qxd4 {[%emt 0:01:43]} 8. Nxd4 {[%emt 0:00:06]} c5 {[%emt 0:01:32]} 9. Nb3 {[%emt 0:01:40] C69: Ruy Lopez: Exchange Variation with 5 0-0 f6.} (9. Ne2 $11) 9... Be6 $15 {[%emt 0:06:24]} 10. Rd1 {[%emt 0:07:18]} Bd6 {[%emt 0:05:38] Against Bf4} 11. Nc3 {[%emt 0:12:03] Black is slightly better.} O-O-O {[%emt 0:04:59]} 12. Be3 {[%emt 0:02:09]} b6 {[%emt 0:02:52] [#]} 13. Rd2 $146 {[%emt 0:12:56]} ({Predecessor:} 13. a4 Ne7 14. a5 Kb7 15. f4 Nc6 16. axb6 cxb6 17. Nd5 Rhe8 {½-½ (17) Sevian,S (2373)-Matikozian,A (2429) Los Angeles 2013}) 13... f5 {[%emt 0:19:44]} 14. f4 {[%emt 0:19:45]} Nh6 {[%emt 0:04:21] aiming for ...Ng4.} 15. e5 {[%emt 0:00:23]} Be7 {[%emt 0:01:32]} 16. h3 {[%emt 0:01:04] Against Ng4} Nf7 {[%emt 0:02:46]} 17. Nc1 {[%emt 0:13:58]} Rhg8 {[%emt 0:05:07]} 18. N1e2 {[%emt 0:02:09]} h6 {[%emt 0:02:36]} 19. Kh2 {[%emt 0:01:25]} g5 {[%emt 0:07:25]} 20. Rxd8+ {[%emt 0:06:39]} Rxd8 {[%emt 0:06:42]} 21. g3 {[%emt 0:00:06]} Rd7 {[%emt 0:03:39]} 22. Ng1 {[%emt 0:02:53]} b5 {[%emt 0:03:07]} (22... g4 $15) 23. a3 {[%emt 0:08:08]} Rd8 {[%emt 0:04:41]} 24. Nf3 {[%emt 0:00:28]} Rg8 {[%emt 0:01:19]} 25. Rd1 {[%emt 0:00:51]} Rd8 {[%emt 0:01:16]} 26. Ra1 {[%emt 0:00:03]} Rg8 {[%emt 0:01:20]} 27. Rb1 {[%emt 0:01:58]} gxf4 {[%emt 0:01:55]} 28. gxf4 {[%emt 0:00:04]} b4 {[%emt 0:00:35]} 29. axb4 {[%emt 0:03:16]} cxb4 {[%emt 0:00:01]} 30. Nd4 {[%emt 0:00:30]} Bc5 $2 {[%emt 0:01:57][%mdl 8192] [#]} (30... Nd8 $11 31. Nce2 Bh4) 31. Nxe6 $18 {[%emt 0:01:26]} Bxe3 {[%emt 0:00:30]} 32. Nd5 {[%emt 0:01:12][%csl LRb4,LRc7,LRe3] Pair of Knights!} Kd7 {[%emt 0:00:15]} 33. Nxe3 {[%emt 0:02:17]} (33. Nd4 $142 Bxd4 34. Nf6+ Ke7 35. Nxg8+ Kf8 36. Nf6 Nxe5 37. Nd5) 33... Kxe6 {[%emt 0:00:06][%mdl 4096] Endgame KRN-KRN} 34. Ra1 {[%emt 0:00:00]} Ra8 {[%emt 0:03:11]} 35. Rg1 {[%emt 0:00:02] [#] Threatens to win with Rg6+.} Nh8 {[%emt 0:00:07] Inhibits Rg6+. Black cannot hold the game after this.} (35... Nxe5 $16 36. fxe5 a5) 36. Rg7 {[%emt 0:00:02]} c6 {[%emt 0:01:02]} (36... Rc8 $142 37. Kg2 c6) 37. Rc7 {[%emt 0:00:30] White is clearly winning.} Ng6 {[%emt 0:00:18]} (37... c5 $142 38. Rxc5 Kd7 39. Rd5+ Kc6 40. Rd6+ Kc5 41. Nxf5 a5) 38. Rxc6+ {[%emt 0:00:02]} Kf7 {[%emt 0:00:08]} 39. Nxf5 {[%emt 0:00:57] Weighted Error Value: White=0.14 (very precise) /Black=0.38} 1-0

[Event "44th Chess Olympiad Women 2022"]
[Site "Chennai"]
[Date "2022.07.30"]
[Round "2.19"]
[White "Otazo Sanchez, Annyd Gabriela"]
[Black "Klinova, Masha"]
[Result "1-0"]
[ECO "B07"]
[WhiteElo "1932"]
[BlackElo "2251"]
[Annotator "TA"]
[PlyCount "95"]
[EventDate "2022.07.29"]
[EventType "team-tourn"]
[EventCountry "IND"]
[SourceTitle "playchess.com"]
[Source "ChessBase"]
[SourceQuality "1"]
[WhiteTeam "Venezuela"]
[BlackTeam "Israel"]
[WhiteTeamCountry "VEN"]
[BlackTeamCountry "ISR"]
[TimeControl "40/5400+30:1800+30"]

{[%evp 15,95,28,43,21,27,35,27,23,29,41,24,0,25,14,22,-40,0,0,0,-1,42,25,17,25,32,20,208,87,208,202,202,120,211,206,218,212,220,207,270,277,291,295,316,293,291,285,281,268,838,742,962,541,565,494,1398,477,381,0,1442,1425,1388,1349,910,851,1010,1000,29974,29974,29958,11657,5093,5089,29977,29978,29978,29979,29979,29979,29979,29978,29978,29979]} 1. e4 {[%emt 0:00:02]} d6 {[%emt 0:00:06]} 2. d4 {[%emt 0:00:15]} Nf6 {[%emt 0:00:05]} 3. Nc3 {[%emt 0:00:04]} e5 {[%emt 0:00:07]} 4. dxe5 {[%emt 0:03:57]} dxe5 {[%emt 0:00:03]} 5. Qxd8+ {[%emt 0:00:14]} Kxd8 {[%emt 0:00:04]} 6. Bc4 {[%emt 0:00:22]} Ke8 {[%emt 0:00:26]} 7. Nf3 {[%emt 0:01:59]} Bd6 {[%emt 0:01:02]} 8. Bg5 {[%emt 0:01:52]} Nbd7 {[%emt 0:03:26]} 9. O-O-O {[%emt 0:05:31] B07: Pirc Defence: Miscellaneous Systems.} a6 {[%emt 0:01:09]} 10. a4 $1 {[%emt 0:12:45] The main line 10.a4 scores better than 10.Rhe1.} h6 {[%emt 0:07:41]} 11. Bh4 {[%emt 0:08:00] White has an edge.} Nb6 {[%emt 0:13:10]} 12. Bxf6 {[%emt 0:12:20]} gxf6 {[%emt 0:04:45]} 13. Bb3 {[%emt 0:00:34]} Be6 {[%emt 0:00:39]} 14. Nh4 {[%emt 0:11:51] [#]} Bb4 $146 {[%emt 0:04:49]} ({Predecessor:} 14... Bc5 15. Rhf1 Rg8 16. h3 h5 17. Rd3 c6 18. Ne2 Rd8 19. Rxd8+ Kxd8 20. Bxe6 fxe6 {½-½ (20) Luett,M (2082)-Kuhn,A (1946) Troisdorf 2013}) 15. Nf5 {[%emt 0:05:44]} (15. Ne2 $11) 15... Bxf5 {[%emt 0:04:29]} (15... Bxc3 $5 16. bxc3 Nd7 $15) 16. exf5 {[%emt 0:00:06]} Bxc3 {[%emt 0:00:05]} 17. bxc3 {[%emt 0:00:05]} Ke7 {[%emt 0:00:41]} 18. f4 {[%emt 0:09:43]} (18. a5 $5 {[%cal Ra5b6]} Nd7 19. Bxf7 $1 $14) 18... Rad8 {[%emt 0:03:22]} 19. fxe5 {[%emt 0:00:21]} fxe5 {[%emt 0:01:32]} 20. f6+ {[%emt 0:00:07]} Ke8 $2 {[%emt 0:04:09] Black is now going downhill.} (20... Kxf6 $11 {and Black stays safe.} 21. Rhf1+ Kg6) 21. Rxd8+ $18 {[%emt 0:01:15]} Kxd8 {[%emt 0:00:06]} 22. Bxf7 {[%emt 0:00:16][%mdl 4096] Endgame Hoping for Rd1+. KRB-KRN} Nc8 {[%emt 0:08:22]} 23. Rd1+ {[%emt 0:11:38]} Nd6 {[%emt 0:00:07] [#]} 24. Bd5 $1 {[%emt 0:03:38]} Rf8 {[%emt 0:02:04]} 25. Bxb7 $1 {[%emt 0:01:43]} Rxf6 {[%emt 0:00:45]} 26. Bxa6 {[%emt 0:00:15]} Ke7 {[%emt 0:01:51]} 27. a5 {[%emt 0:01:26][%cal Ba4a5,Ba5a6][%mdl 32]} Ne4 {[%emt 0:01:27]} 28. Bd3 {[%emt 0:03:11]} Nxc3 {[%emt 0:02:12]} 29. Re1 {[%emt 0:00:18]} Kd6 {[%emt 0:00:08]} 30. a6 {[%emt 0:00:27] Black must now prevent Rf1.} Rf8 {[%emt 0:00:42]} 31. Rf1 {[%emt 0:01:50]} Rxf1+ {[%emt 0:04:00]} (31... Ra8 32. Rf6+ Kc5) 32. Bxf1 {[%emt 0:00:05] KB-KN} Kc6 {[%emt 0:00:00]} 33. Kd2 {[%emt 0:00:59]} Nd5 {[%emt 0:00:43]} 34. Kd3 {[%emt 0:02:27] Threatens to win with Ke4.} Nb4+ {[%emt 0:01:50]} (34... Nf6 $142 35. Ke3 Kb6) 35. Kc3 {[%emt 0:00:12]} (35. Ke4 $142 Kb6 36. g4) 35... Nd5+ {[%emt 0:00:04]} 36. Kd3 $2 {[%emt 0:00:13]} (36. Kd2) 36... Nb4+ $1 {[%emt 0:00:03]} 37. Ke4 {[%emt 0:00:45]} Nxc2 {[%emt 0:00:21]} 38. Kxe5 {[%emt 0:00:04]} Ne3 {[%emt 0:00:16]} 39. Be2 {[%emt 0:00:17] White wants to mate with g4.} Kb6 {[%emt 0:00:10]} 40. g4 {[%emt 0:02:03] h4 is the strong threat.} c5 {[%emt 0:04:03]} 41. h4 {[%emt 0:31:22]} c4 {[%emt 0:31:32]} 42. Kd4 {[%emt 0:00:00]} (42. Ke4 $142 Ng2 43. g5 hxg5 44. h5 Nf4 {[#]} 45. h6 $1 Ng6 46. Bxc4 g4 47. h7) 42... Ng2 {[%emt 0:00:00]} 43. h5 {[%emt 0:00:00]} Kxa6 {[%emt 0:00:00]} 44. Bxc4+ {[%emt 0:00:00] White mates.} Kb6 {[%emt 0:00:00]} 45. Ke4 {[%emt 0:00:00]} Kc5 {[%emt 0:00:00]} 46. Bf1 {[%emt 0:00:00]} Nh4 {[%emt 0:00:00]} 47. Kf4 {[%emt 0:00:00]} Kd6 {[%emt 0:00:00]} 48. Kg3 {[%emt 0:00:00] Weighted Error Value: White=0.47/Black=0.55} 1-0

[Event "44th Chess Olympiad Women 2022"]
[Site "Chennai"]
[Date "2022.07.30"]
[Round "2.19"]
[White "Perez Hernandez, Vicmary C."]
[Black "Levitan, Ronit"]
[Result "1/2-1/2"]
[ECO "C44"]
[WhiteElo "1862"]
[BlackElo "2084"]
[Annotator "TA"]
[PlyCount "89"]
[EventDate "2022.07.29"]
[EventType "team-tourn"]
[EventCountry "IND"]
[SourceTitle "playchess.com"]
[Source "ChessBase"]
[SourceQuality "1"]
[WhiteTeam "Venezuela"]
[BlackTeam "Israel"]
[WhiteTeamCountry "VEN"]
[BlackTeamCountry "ISR"]
[TimeControl "40/5400+30:1800+30"]

{[%evp 14,89,-7,-5,0,-13,0,-31,-31,-56,-47,-63,-27,-127,-52,-67,-45,-57,-65,-57,-58,-65,-59,-63,-22,-24,-24,-34,-29,-41,0,0,0,0,0,0,32,0,6,3,11,0,79,0,44,47,52,69,67,0,87,0,65,0,0,0,0,0,0,-70,-32,-35,-8,-8,-8,-8,-8,-8,-8,-8,-8,-8,-8,-8,0,0,0,-8]} 1. e4 {[%emt 0:00:15]} e5 {[%emt 0:00:44]} 2. d4 {[%emt 0:00:26]} exd4 {[%emt 0:00:42]} 3. Nf3 {[%emt 0:00:12]} Nc6 {[%emt 0:00:16]} 4. Bc4 {[%emt 0:00:51]} Bc5 {[%emt 0:00:47]} 5. O-O {[%emt 0:00:29]} d6 {[%emt 0:01:13]} 6. c3 {[%emt 0:03:11]} Bg4 {[%emt 0:01:00] 6...d3 is the fancy move.} 7. Qb3 {[%emt 0:02:24]} Bxf3 {[%emt 0:00:07]} 8. Bxf7+ {[%emt 0:01:04]} Kf8 {[%emt 0:00:07] aiming for ...Be2. C44: Ponziani Opening and Scotch Gambit.} 9. gxf3 {[%emt 0:00:24]} Nf6 {[%emt 0:00:33]} 10. Bd5 {[%emt 0:13:49]} Nxd5 {[%emt 0:01:18] Black is slightly better.} 11. Qxd5 {[%emt 0:06:03]} Qf6 {[%emt 0:00:58]} 12. f4 {[%emt 0:12:42] [#] Inhibits Ne5.} Bb6 $146 {[%emt 0:08:03]} ({Predecessor:} 12... Re8 13. e5 Qe6 14. Qxe6 Rxe6 15. b4 Bb6 16. b5 Ne7 17. exd6 cxd6 18. Bd2 Nf5 {0-1 (25) Slettebo,J (1920)-Sorensen,P (2030) Ballerup 2019}) 13. cxd4 {[%emt 0:20:40]} (13. Kh1 $11) 13... Nxd4 {[%emt 0:02:11]} (13... Nb4 $1 $17 {[%cal Rb4d5]} 14. e5 (14. Qxb7 $2 Qg6+ 15. Kh1 Kf7 $19) 14... Qg6+ 15. Qg2 Nc2) 14. Nc3 {[%emt 0:00:04]} c6 {[%emt 0:19:03]} 15. Qh5 {[%emt 0:03:31] Inhibits Nf3+.} Qg6+ {[%emt 0:02:34]} 16. Qxg6 {[%emt 0:00:18]} hxg6 {[%emt 0:00:05]} 17. Kg2 {[%emt 0:00:21]} Ke7 {[%emt 0:00:35]} 18. Bd2 {[%emt 0:05:35]} Rh5 {[%emt 0:04:15]} 19. Rad1 {[%emt 0:01:32]} Rah8 {[%emt 0:00:25]} 20. Rh1 {[%emt 0:00:12]} Ne6 {[%emt 0:10:44]} 21. h3 {[%emt 0:04:28]} Ba5 {[%emt 0:02:45]} (21... Rh4 {with more complications.} 22. Ne2 g5 23. f5 Rxe4 24. Rhe1 Nc7) 22. Ne2 {[%emt 0:01:45]} Bxd2 {[%emt 0:07:17]} 23. Rxd2 {[%emt 0:00:02]} g5 {[%emt 0:01:08]} 24. f5 {[%emt 0:07:54]} Nc7 {[%emt 0:10:34]} 25. Ng3 {[%emt 0:01:18]} (25. Rhd1 $5 {[%cal Rd2d6]} d5 26. Rd3 $11) 25... R5h6 {[%emt 0:01:28]} 26. Rd3 {[%emt 0:01:27]} d5 {[%emt 0:01:30]} 27. e5 {[%emt 0:00:08][%cal Of5f6]} Kf7 {[%emt 0:00:18] [#] Prevents f6.} (27... Kd7 $11) 28. Rd4 {[%emt 0:02:11]} (28. Ne4 $1 $16) 28... Rh4 {[%emt 0:01:49]} 29. Rg4 {[%emt 0:04:30]} Rxg4 {[%emt 0:15:13]} 30. hxg4 {[%emt 0:00:02]} Rxh1 {[%emt 0:02:18]} 31. Nxh1 $14 {[%emt 0:01:31][%mdl 4096] Endgame KN-KN} (31. Kxh1 $14 Na6 32. Ne2) 31... Na6 {[%emt 0:00:28] [#]} (31... Nb5 $1 $11 {remains equal.}) 32. Ng3 {[%emt 0:01:20]} (32. f3 $1 $16) 32... Nb4 {[%emt 0:00:04]} ({Better is} 32... Nc5 $11) 33. a3 {[%emt 0:00:19]} ({White should try} 33. f4 $1 $14) 33... Nd3 $11 {[%emt 0:00:08][%csl LRb2,LRe5]} 34. e6+ {[%emt 0:00:05]} Ke7 {[%emt 0:00:04]} 35. b3 {[%emt 0:01:47]} c5 {[%emt 0:00:31]} 36. f3 {[%emt 0:02:17]} (36. Ne2 $11) 36... b5 {[%emt 0:00:41]} 37. Ne2 $1 {[%emt 0:01:15]} d4 {[%emt 0:03:53] With the idea ...a5.} (37... a5 $5 {[%cal Rb5b4]}) 38. b4 $1 {[%emt 0:01:25] The position is equal.} cxb4 {[%emt 0:01:02]} 39. axb4 {[%emt 0:00:01]} Nxb4 {[%emt 0:00:21]} 40. Nxd4 {[%emt 0:00:02]} a6 {[%emt 0:00:11]} 41. Kf2 {[%emt 0:31:14]} Nd5 {[%emt 0:31:13]} 42. Ke2 {[%emt 0:00:29]} Kd6 {[%emt 0:01:46]} 43. Kd3 {[%emt 0:01:30]} Ke5 {[%emt 0:00:00]} 44. Nc6+ {[%emt 0:00:00]} Kd6 {[%emt 0:00:00]} 45. Nd4 {[%emt 0:00:00] Weighted Error Value: White=0.24 (precise) /Black=0.25 (precise)} 1/2-1/2

[Event "44th Chess Olympiad Women 2022"]
[Site "Chennai"]
[Date "2022.07.30"]
[Round "2.20"]
[White "Lehaci, Miruna-Daria"]
[Black "Avelino, Camila Biscaya"]
[Result "1-0"]
[ECO "E90"]
[WhiteElo "2193"]
[BlackElo "1863"]
[Annotator "TA"]
[PlyCount "67"]
[EventDate "2022.07.29"]
[EventType "team-tourn"]
[EventCountry "IND"]
[SourceTitle "playchess.com"]
[Source "ChessBase"]
[SourceQuality "1"]
[WhiteTeam "Romania"]
[BlackTeam "Portugal"]
[WhiteTeamCountry "ROU"]
[BlackTeamCountry "POR"]
[TimeControl "40/5400+30:1800+30"]

{[%evp 14,67,41,37,37,28,31,30,30,36,28,9,53,60,57,0,18,12,11,15,17,0,6,-6,-9,-2,0,0,-8,-254,-262,-302,-282,-450,-314,-298,-287,-262,-257,-265,-93,-103,-8,-5,0,0,0,0,41,44,91,75,88,87,29995,29996]} 1. d4 {[%emt 0:00:03]} Nf6 {[%emt 0:00:41]} 2. Nf3 {[%emt 0:00:05]} g6 {[%emt 0:00:33]} 3. c4 {[%emt 0:00:07]} Bg7 {[%emt 0:00:31]} 4. Nc3 {[%emt 0:00:07]} O-O {[%emt 0:00:45]} 5. e4 {[%emt 0:00:07]} d6 {[%emt 0:00:34]} 6. h3 {[%emt 0:00:08]} Nbd7 {[%emt 0:00:47]} 7. Bd3 {[%emt 0:00:20] 7.Bg5 is a critical line.} e5 {[%emt 0:01:26]} 8. d5 {[%emt 0:00:17]} a5 {[%emt 0:02:54] E90: King's Indian: Classical: Early deviations and 6 h3.} 9. O-O {[%emt 0:00:53]} Nc5 {[%emt 0:01:47]} 10. Bc2 {[%emt 0:00:20]} Ne8 {[%emt 0:15:22] White has an edge.} 11. a3 {[%emt 0:07:19]} f5 {[%emt 0:02:38] [#]} 12. Rb1 $146 {[%emt 0:05:47]} ({Predecessor:} 12. exf5 gxf5 13. Bg5 Qd7 14. Rb1 Qf7 15. Kh1 Bd7 16. Be3 Kh8 17. b4 axb4 18. axb4 Na6 19. Ng5 {1-0 (19) Belchev,B (2323)-Ponomarev,A (2369) ICCF email 2009}) 12... Nf6 {[%emt 0:07:46]} 13. exf5 {[%emt 0:07:09]} Bxf5 {[%emt 0:07:06]} 14. b4 {[%emt 0:08:02]} axb4 {[%emt 0:00:54]} 15. axb4 {[%emt 0:00:06]} Nce4 {[%emt 0:04:28]} 16. Nxe4 {[%emt 0:03:40]} Nxe4 {[%emt 0:00:16]} 17. Rb3 {[%emt 0:04:24] Inhibits Nc3. Threatens to win with g4.} Ra1 {[%emt 0:13:20]} 18. Qe2 {[%emt 0:14:07]} Ra2 {[%emt 0:05:51][%cal Oe4g3] Strongly threatening ...Ng3!} 19. Bb2 $132 {[%emt 0:04:31][%mdl 2048] [#] White is not keeping still} Nc3 {[%emt 0:13:09]} 20. Bxc3 {[%emt 0:04:06]} Rxc2 {[%emt 0:05:32]} 21. Qd1 {[%emt 0:01:57] [#]} (21. Qe3 $11 {and White stays safe.}) 21... Qa8 $1 $19 {[%emt 0:02:45] ...Qa2 is the strong threat.} 22. Ba1 {[%emt 0:15:42]} Qa2 {[%emt 0:01:26]} ({Avoid the trap} 22... Rxc4 $2 23. Bc3 $19) 23. Re3 {[%emt 0:06:28]} (23. Rc3 {is a better defense.}) 23... Bh6 {[%emt 0:01:53]} 24. Rc3 {[%emt 0:01:22]} Rxc3 {[%emt 0:04:12]} 25. Bxc3 {[%emt 0:00:05]} Qxc4 {[%emt 0:00:28]} 26. Bd2 {[%emt 0:00:32]} Bxd2 {[%emt 0:02:02]} (26... Bg7 $19 {is more deadly.} 27. Be3 Bd3) 27. Qxd2 $17 {[%emt 0:00:06]} Bxh3 {[%emt 0:03:39]} 28. Rc1 $1 $11 {[%emt 0:02:24]} Qg4 {[%emt 0:01:05][%csl Gh3][%cal Rg4g2]} 29. Ne1 {[%emt 0:00:09]} Rf5 {[%emt 0:00:32]} 30. Rc3 {[%emt 0:01:26]} Qxb4 {[%emt 0:00:29] Hoping for ...Bg4.} (30... Bxg2 $5 31. Nxg2 Qxb4 $11) 31. gxh3 {[%emt 0:00:43]} Rf4 {[%emt 0:00:37]} (31... Rf7 $14 {is superior.}) 32. Nd3 {[%emt 0:02:42]} Qd4 {[%emt 0:00:11] And now ...Rf3 would win.} 33. Rxc7 {[%emt 0:00:31]} Rf8 $2 {[%emt 0:00:41][%mdl 8192] [#]} (33... Qxd5 $16 34. Qc2 Rf7) 34. Qh6 $1 {[%emt 0:02:01] What a bad dream for Black.  Weighted Error Value: White=0.31/Black=0.52} 1-0

[Event "44th Chess Olympiad Women 2022"]
[Site "Chennai"]
[Date "2022.07.30"]
[Round "2.20"]
[White "Ciolacu, Alessia-Mihaela"]
[Black "Chaves, Jussara"]
[Result "1-0"]
[ECO "D94"]
[WhiteElo "2163"]
[BlackElo "1933"]
[Annotator "TA"]
[PlyCount "69"]
[EventDate "2022.07.29"]
[EventType "team-tourn"]
[EventCountry "IND"]
[SourceTitle "playchess.com"]
[Source "ChessBase"]
[SourceQuality "1"]
[WhiteTeam "Romania"]
[BlackTeam "Portugal"]
[WhiteTeamCountry "ROU"]
[BlackTeamCountry "POR"]
[TimeControl "40/5400+30:1800+30"]

{[%evp 15,69,22,37,17,42,43,88,88,97,91,92,83,135,110,160,106,114,50,58,51,53,39,64,19,39,66,58,26,58,29,98,110,149,139,235,239,454,452,435,449,664,664,682,671,653,634,1513,1420,1494,1477,1814,1229,3966,3477,29987,29988]} 1. d4 {[%emt 0:00:04]} c6 {[%emt 0:00:32]} 2. c4 {[%emt 0:00:50]} d5 {[%emt 0:01:03]} 3. Nf3 {[%emt 0:00:31]} Nf6 {[%emt 0:00:43]} 4. e3 {[%emt 0:00:27]} g6 {[%emt 0:01:02]} 5. Nc3 {[%emt 0:00:30]} Bg7 {[%emt 0:00:53]} 6. Be2 {[%emt 0:00:56]} O-O {[%emt 0:01:43]} 7. O-O {[%emt 0:00:40]} Be6 {[%emt 0:08:02] 7...a6 gains popularity.} 8. cxd5 {[%emt 0:07:59]} cxd5 {[%emt 0:01:27]} 9. Ne5 {[%emt 0:00:42][%cal Bf3e5,Be5d3,Bd3f4][%mdl 32] D94: Grünfeld: 4 Nf3 Bg7 5 e3.} (9. Qb3 $5 {[%cal Rb3b7]}) 9... Nfd7 {[%emt 0:06:07]} 10. Nd3 {[%emt 0:01:15] [#]} Nc6 $146 {[%emt 0:03:11]} ({Predecessor:} 10... Nb6 11. a4 Na6 12. Nf4 Nc7 13. Qb3 Qd6 14. Nxe6 fxe6 15. Bd2 e5 16. dxe5 Bxe5 {1-0 (36) Sergeev,V (2510)-Just,J (2046) Guben 2012}) 11. Nf4 {[%emt 0:03:56] White is better.} Nb6 {[%emt 0:03:01]} 12. Nxe6 {[%emt 0:09:22]} fxe6 {[%emt 0:00:09]} 13. Bg4 {[%emt 0:00:09]} Qd7 {[%emt 0:02:32]} ({Black should try} 13... e5) 14. h4 {[%emt 0:04:36]} Bf6 {[%emt 0:17:13]} (14... Qd6 $142) 15. h5 {[%emt 0:06:04]} (15. g3 $142) 15... gxh5 $16 {[%emt 0:04:29] [#]} 16. Bxh5 {[%emt 0:02:27]} (16. Bh3 $1 $16) 16... e5 $14 {[%emt 0:02:02]} 17. Bg4 {[%emt 0:02:04]} e6 {[%emt 0:03:22][%cal Re5d4]} 18. Ne2 {[%emt 0:04:50]} Rae8 {[%emt 0:03:42]} 19. a4 {[%emt 0:18:59]} Qg7 {[%emt 0:05:41][%csl LRd4,LRg4]} 20. Bh5 $36 {[%emt 0:01:21][%mdl 2048] White fights for an advantage.} Rc8 {[%emt 0:01:30]} 21. a5 {[%emt 0:07:55]} Nd7 {[%emt 0:02:14]} 22. Ra4 {[%emt 0:02:35]} b5 {[%emt 0:07:01]} (22... Kh8 $11) 23. axb6 $1 $16 {[%emt 0:00:42]} Nxb6 {[%emt 0:00:11] [#]} 24. dxe5 $1 {[%emt 0:00:36][%cal Bd4e5,Be5f6,Bf6f7][%mdl 32]} Nxa4 {[%emt 0:02:33]} (24... Nxe5 $16 25. Ra6 Kh8) 25. exf6 $18 {[%emt 0:00:14]} Qg5 {[%emt 0:05:47]} (25... Qh6 26. f7+ Kh8) 26. f7+ {[%emt 0:00:14]} Kh8 {[%emt 0:01:20]} 27. Nf4 {[%emt 0:02:29]} Nc5 {[%emt 0:00:47]} (27... Nd8 $142 28. Qxa4 e5) 28. b4 {[%emt 0:01:55][%mdl 64] Deflection, Decoy} Nxb4 {[%emt 0:01:12]} 29. Qd4+ {[%emt 0:00:48]} e5 {[%emt 0:00:37]} 30. Qxb4 {[%emt 0:00:05]} d4 {[%emt 0:02:01]} 31. exd4 {[%emt 0:01:06]} exf4 {[%emt 0:04:21]} 32. dxc5 {[%emt 0:00:16]} Kg7 {[%emt 0:00:58]} 33. Qc3+ {[%emt 0:05:40]} Kh6 {[%emt 0:05:11] [#]} 34. Qh3 $1 {[%emt 0:00:26] Threatening mate with Bd1+.} Rc6 {[%emt 0:01:19]} (34... Rb8 35. c6) 35. Bf3+ {[%emt 0:12:11] Weighted Error Value: White=0.14 (very precise) /Black=0.71} 1-0